[Event "Late-Titled-Tuesday-Blitz-April-02-2024"]
[Site "Chess.com"]
[Date "2024.04.02"]
[Round "2"]
[White "NikitaShnadrygin"]
[Black "arturdailima"]
[Result "1-0"]
[WhiteElo "2664"]
[BlackElo "2376"]
[TimeControl "180+1"]
[EndTime "14:16:03 PDT"]
[Termination "NikitaShnadrygin won by resignation"]

1. e4 {[%clk 0:03:00.9]} 1... Nf6 {[%clk 0:02:54.6]} 2. e5 {[%clk 0:03:00.9]}
2... Nd5 {[%clk 0:02:55.2]} 3. d4 {[%clk 0:03:01.5]} 3... d6 {[%clk 0:02:55.5]}
4. c4 {[%clk 0:03:02.2]} 4... Nb6 {[%clk 0:02:55.2]} 5. f4 {[%clk 0:03:02.9]}
5... dxe5 {[%clk 0:02:55.2]} 6. fxe5 {[%clk 0:03:03.8]} 6... Bf5 {[%clk
0:02:55.9]} 7. Nc3 {[%clk 0:03:03.3]} 7... e6 {[%clk 0:02:55.9]} 8. Be3 {[%clk
0:02:55.2]} 8... Bb4 {[%clk 0:02:54.8]} 9. Bd3 {[%clk 0:02:55.3]} 9... c5 {[%clk
0:02:46]} 10. Bxf5 {[%clk 0:02:16.8]} 10... cxd4 {[%clk 0:02:43.4]} 11. Be4
{[%clk 0:01:59]} 11... Qh4+ {[%clk 0:02:29.4]} 12. Kf1 {[%clk 0:01:59.4]} 12...
dxc3 {[%clk 0:02:26]} 13. Bxb7 {[%clk 0:01:56]} 13... Qxc4+ {[%clk 0:02:16.7]}
14. Qe2 {[%clk 0:01:51.4]} 14... cxb2 {[%clk 0:02:15]} 15. Rb1 {[%clk
0:01:45.8]} 15... Qxa2 {[%clk 0:02:08.2]} 16. Qxb2 {[%clk 0:01:37.5]} 16... Qxb2
{[%clk 0:01:56.6]} 17. Rxb2 {[%clk 0:01:35.1]} 17... Bc3 {[%clk 0:01:57.3]} 18.
Rc2 {[%clk 0:01:31.3]} 18... N8d7 {[%clk 0:01:14.7]} 19. Bxa8 {[%clk 0:01:27.5]}
19... Bxe5 {[%clk 0:01:13.8]} 20. Bc6 {[%clk 0:01:18.9]} 20... Ke7 {[%clk
0:01:11.3]} 21. Nf3 {[%clk 0:01:11.8]} 21... Bf6 {[%clk 0:01:11]} 22. Bxd7
{[%clk 0:01:09.9]} 22... Nxd7 {[%clk 0:01:10.6]} 23. Ke2 {[%clk 0:01:10.3]}
23... a5 {[%clk 0:01:06.9]} 24. Rd1 {[%clk 0:01:10.5]} 24... a4 {[%clk 0:00:58]}
25. Rc7 {[%clk 0:01:10.4]} 25... Rd8 {[%clk 0:00:57.9]} 26. Ra7 {[%clk
0:01:10.7]} 26... Ke8 {[%clk 0:00:54.4]} 27. Rxa4 {[%clk 0:01:09.2]} 27... Ne5
{[%clk 0:00:54.9]} 28. Rxd8+ {[%clk 0:01:07.5]} 28... Kxd8 {[%clk 0:00:55.8]}
29. Nxe5 {[%clk 0:01:07.8]} 29... Bxe5 {[%clk 0:00:56.7]} 30. h3 {[%clk
0:01:07.4]} 30... Ke7 {[%clk 0:00:57.2]} 31. Bd4 {[%clk 0:01:07.5]} 31... Bxd4
{[%clk 0:00:54.1]} 32. Rxd4 {[%clk 0:01:08.4]} 32... h5 {[%clk 0:00:53.6]} 33.
Ra4 {[%clk 0:01:08.4]} 33... g6 {[%clk 0:00:53.8]} 34. Kf3 {[%clk 0:01:09.3]}
34... Kf6 {[%clk 0:00:54.1]} 35. Kf4 {[%clk 0:01:09.7]} 35... g5+ {[%clk
0:00:53.6]} 36. Ke4 {[%clk 0:01:09.9]} 36... Kg6 {[%clk 0:00:54.1]} 37. Ra6
{[%clk 0:01:10.4]} 37... Kf6 {[%clk 0:00:54.3]} 38. Rb6 {[%clk 0:01:11]} 38...
Ke7 {[%clk 0:00:53.7]} 39. Ke5 {[%clk 0:01:11.9]} 39... f6+ {[%clk 0:00:53.6]}
40. Ke4 {[%clk 0:01:12.5]} 40... Kd7 {[%clk 0:00:53.6]} 41. Ra6 {[%clk
0:01:12.5]} 41... Ke7 {[%clk 0:00:53.8]} 42. Ra7+ {[%clk 0:01:13.1]} 42... Kd6
{[%clk 0:00:54.4]} 43. Rh7 {[%clk 0:01:08.9]} 43... h4 {[%clk 0:00:54]} 44. Rf7
{[%clk 0:01:06.7]} 44... f5+ {[%clk 0:00:53.9]} 45. Kf3 {[%clk 0:01:07.3]} 45...
Ke5 {[%clk 0:00:53.6]} 46. Rf8 {[%clk 0:01:06.8]} 46... Kd5 {[%clk 0:00:52.4]}
47. Rg8 {[%clk 0:01:07.1]} 1-0

[Event "Late-Titled-Tuesday-Blitz-April-02-2024"]
[Site "Chess.com"]
[Date "2024.04.02"]
[Round "2"]
[White "Mariia89"]
[Black "Koalaskakistis"]
[Result "0-1"]
[WhiteElo "2280"]
[BlackElo "2517"]
[TimeControl "180+1"]
[EndTime "14:16:06 PDT"]
[Termination "Koalaskakistis won on time"]

1. d4 {[%clk 0:02:58.4]} 1... f5 {[%clk 0:02:55.9]} 2. g3 {[%clk 0:02:58]} 2...
Nf6 {[%clk 0:02:56.1]} 3. Bg2 {[%clk 0:02:58.7]} 3... e6 {[%clk 0:02:56.7]} 4.
Nf3 {[%clk 0:02:59.2]} 4... Be7 {[%clk 0:02:57.1]} 5. O-O {[%clk 0:02:59.9]}
5... O-O {[%clk 0:02:58]} 6. c4 {[%clk 0:03:00.2]} 6... d6 {[%clk 0:02:58.8]} 7.
Nc3 {[%clk 0:03:00.8]} 7... Ne4 {[%clk 0:02:59.4]} 8. Qc2 {[%clk 0:02:57.8]}
8... Nxc3 {[%clk 0:02:59.1]} 9. Qxc3 {[%clk 0:02:57.8]} 9... a5 {[%clk
0:02:59.5]} 10. b3 {[%clk 0:02:50.3]} 10... Nc6 {[%clk 0:02:59]} 11. Bb2 {[%clk
0:02:50.4]} 11... Bf6 {[%clk 0:02:59.1]} 12. Qd2 {[%clk 0:02:49.4]} 12... e5
{[%clk 0:02:54.9]} 13. dxe5 {[%clk 0:02:48.3]} 13... dxe5 {[%clk 0:02:55]} 14.
Qd5+ {[%clk 0:02:12.8]} 14... Kh8 {[%clk 0:02:54.6]} 15. Rad1 {[%clk 0:02:03.8]}
15... Qe8 {[%clk 0:02:54.2]} 16. e4 {[%clk 0:01:54]} 16... Nb4 {[%clk
0:02:43.2]} 17. Qd2 {[%clk 0:01:15.7]} 17... fxe4 {[%clk 0:02:42.6]} 18. Ng5
{[%clk 0:01:15.5]} 18... Bg4 {[%clk 0:02:34.9]} 19. Nxe4 {[%clk 0:00:50.7]}
19... Rd8 {[%clk 0:02:26.9]} 20. Qc1 {[%clk 0:00:47.2]} 20... Bxd1 {[%clk
0:02:22.1]} 21. Rxd1 {[%clk 0:00:47.3]} 21... Nd3 {[%clk 0:02:17.8]} 22. Qb1
{[%clk 0:00:35.1]} 22... Nxb2 {[%clk 0:02:17.5]} 23. Rxd8 {[%clk 0:00:33.4]}
23... Qxd8 {[%clk 0:02:16.3]} 24. Qxb2 {[%clk 0:00:33.6]} 24... Qd1+ {[%clk
0:02:06.9]} 25. Bf1 {[%clk 0:00:33.8]} 25... Qd4 {[%clk 0:02:07.4]} 26. Qe2
{[%clk 0:00:31]} 26... Be7 {[%clk 0:02:04.2]} 27. Kg2 {[%clk 0:00:24.9]} 27...
Bc5 {[%clk 0:02:02.8]} 28. h4 {[%clk 0:00:12.7]} 28... h6 {[%clk 0:01:54.5]} 29.
Kg1 {[%clk 0:00:10.3]} 29... a4 {[%clk 0:01:48.9]} 30. Bg2 {[%clk 0:00:09.6]}
30... a3 {[%clk 0:01:46.6]} 31. h5 {[%clk 0:00:07.8]} 31... b6 {[%clk
0:01:44.3]} 32. Kh2 {[%clk 0:00:06]} 32... Qb2 {[%clk 0:01:39.2]} 33. Bf1 {[%clk
0:00:04.7]} 33... Bxf2 {[%clk 0:01:32.1]} 34. Qxb2 {[%clk 0:00:02.1]} 34... axb2
{[%clk 0:01:33]} 35. Bd3 {[%clk 0:00:02.6]} 35... Bd4 {[%clk 0:01:32.5]} 36. Kg2
{[%clk 0:00:02.3]} 36... c6 {[%clk 0:01:23.6]} 37. Bb1 {[%clk 0:00:02.5]} 37...
b5 {[%clk 0:01:22.2]} 0-1

[Event "Late-Titled-Tuesday-Blitz-April-02-2024"]
[Site "Chess.com"]
[Date "2024.04.02"]
[Round "2"]
[White "enriquebutti"]
[Black "Akhayan"]
[Result "0-1"]
[WhiteElo "2176"]
[BlackElo "2452"]
[TimeControl "180+1"]
[EndTime "14:16:07 PDT"]
[Termination "Akhayan won by resignation"]

1. d4 {[%clk 0:02:59.6]} 1... Nf6 {[%clk 0:02:59.7]} 2. c4 {[%clk 0:02:58.6]}
2... g6 {[%clk 0:03:00]} 3. Nc3 {[%clk 0:02:58.1]} 3... d5 {[%clk 0:03:00.6]} 4.
cxd5 {[%clk 0:02:57]} 4... Nxd5 {[%clk 0:03:00.5]} 5. e4 {[%clk 0:02:56.8]} 5...
Nxc3 {[%clk 0:03:00.7]} 6. bxc3 {[%clk 0:02:56.6]} 6... Bg7 {[%clk 0:03:01.2]}
7. Bc4 {[%clk 0:02:56.2]} 7... O-O {[%clk 0:03:01.5]} 8. Ne2 {[%clk 0:02:55.7]}
8... c5 {[%clk 0:03:02.1]} 9. O-O {[%clk 0:02:55.1]} 9... Nc6 {[%clk 0:03:02.8]}
10. Be3 {[%clk 0:02:54.7]} 10... Qc7 {[%clk 0:02:59.3]} 11. Rc1 {[%clk
0:02:52.2]} 11... Rd8 {[%clk 0:02:58.4]} 12. f4 {[%clk 0:02:50.3]} 12... Bg4
{[%clk 0:02:54.4]} 13. f5 {[%clk 0:02:48]} 13... gxf5 {[%clk 0:02:52.5]} 14.
Bxf7+ {[%clk 0:02:26.8]} 14... Kh8 {[%clk 0:02:28.1]} 15. h3 {[%clk 0:02:24.9]}
15... Bxe2 {[%clk 0:02:26.7]} 16. Qxe2 {[%clk 0:02:24.1]} 16... cxd4 {[%clk
0:02:12.1]} 17. cxd4 {[%clk 0:02:07.3]} 17... e5 {[%clk 0:02:11.1]} 18. Qh5
{[%clk 0:02:00]} 18... exd4 {[%clk 0:02:00.5]} 19. Bg6 {[%clk 0:01:42.8]} 19...
Be5 {[%clk 0:01:44.1]} 20. Rxf5 {[%clk 0:01:22.5]} 20... Qg7 {[%clk 0:01:18.6]}
21. Rg5 {[%clk 0:01:12.1]} 21... dxe3 {[%clk 0:01:11.4]} 22. Bf5 {[%clk
0:00:41.5]} 22... Qe7 {[%clk 0:00:59.7]} 23. Bxh7 {[%clk 0:00:19.4]} 23... Qxh7
{[%clk 0:00:47.6]} 24. Rxe5 {[%clk 0:00:06.9]} 0-1

[Event "Late-Titled-Tuesday-Blitz-April-02-2024"]
[Site "Chess.com"]
[Date "2024.04.02"]
[Round "2"]
[White "merinasian"]
[Black "sacrifoice"]
[Result "0-1"]
[WhiteElo "2496"]
[BlackElo "2283"]
[TimeControl "180+1"]
[EndTime "14:16:08 PDT"]
[Termination "sacrifoice won on time"]

1. d4 {[%clk 0:03:00.9]} 1... Nf6 {[%clk 0:02:59]} 2. Nf3 {[%clk 0:03:00.5]}
2... g6 {[%clk 0:02:59]} 3. Bf4 {[%clk 0:02:59.6]} 3... Bg7 {[%clk 0:02:59.2]}
4. e3 {[%clk 0:03:00]} 4... d5 {[%clk 0:02:59.4]} 5. h3 {[%clk 0:02:59.7]} 5...
O-O {[%clk 0:02:59.5]} 6. Be2 {[%clk 0:02:58.9]} 6... c5 {[%clk 0:02:59.9]} 7.
O-O {[%clk 0:02:59]} 7... Nc6 {[%clk 0:03:00.2]} 8. c3 {[%clk 0:02:58]} 8... a6
{[%clk 0:02:59]} 9. a4 {[%clk 0:02:57.5]} 9... Nd7 {[%clk 0:02:58.1]} 10. Nbd2
{[%clk 0:02:51.9]} 10... e5 {[%clk 0:02:57]} 11. dxe5 {[%clk 0:02:52.1]} 11...
Ndxe5 {[%clk 0:02:57.3]} 12. Nxe5 {[%clk 0:02:51.9]} 12... Nxe5 {[%clk
0:02:56.9]} 13. Nf3 {[%clk 0:02:36.3]} 13... Nxf3+ {[%clk 0:02:55.9]} 14. Bxf3
{[%clk 0:02:37.2]} 14... Be6 {[%clk 0:02:56.1]} 15. Qc2 {[%clk 0:02:32.4]} 15...
Qb6 {[%clk 0:02:50.9]} 16. a5 {[%clk 0:02:31]} 16... Qb5 {[%clk 0:02:45.4]} 17.
Rfd1 {[%clk 0:02:28.1]} 17... Rfd8 {[%clk 0:02:44.7]} 18. Bc7 {[%clk 0:02:03.5]}
18... Rd7 {[%clk 0:02:42.8]} 19. Bb6 {[%clk 0:02:03.7]} 19... Rc8 {[%clk
0:02:34.9]} 20. Rd2 {[%clk 0:02:01]} 20... h6 {[%clk 0:02:28.8]} 21. Rad1 {[%clk
0:02:00.7]} 21... c4 {[%clk 0:02:20.2]} 22. e4 {[%clk 0:01:38.1]} 22... dxe4
{[%clk 0:02:04]} 23. Bxe4 {[%clk 0:01:38.3]} 23... Rxd2 {[%clk 0:01:58.1]} 24.
Qxd2 {[%clk 0:01:33.7]} 24... Qe5 {[%clk 0:01:51]} 25. Bxb7 {[%clk 0:01:29.4]}
25... Rb8 {[%clk 0:01:37.4]} 26. Bxa6 {[%clk 0:01:28.9]} 26... Bf6 {[%clk
0:01:28.7]} 27. Qd6 {[%clk 0:01:19.8]} 27... Re8 {[%clk 0:00:59.2]} 28. Qxe5
{[%clk 0:01:14.8]} 28... Bxe5 {[%clk 0:01:00.1]} 0-1

[Event "Late-Titled-Tuesday-Blitz-April-02-2024"]
[Site "Chess.com"]
[Date "2024.04.02"]
[Round "2"]
[White "alexrustemov"]
[Black "Kavyev_Ruslan"]
[Result "1-0"]
[WhiteElo "2872"]
[BlackElo "2395"]
[TimeControl "180+1"]
[EndTime "14:16:10 PDT"]
[Termination "alexrustemov won by resignation"]

1. d4 {[%clk 0:03:00.9]} 1... d5 {[%clk 0:02:58.8]} 2. c4 {[%clk 0:03:01.1]}
2... e6 {[%clk 0:02:57.6]} 3. Nc3 {[%clk 0:03:01]} 3... Nf6 {[%clk 0:02:57.1]}
4. Nf3 {[%clk 0:03:01]} 4... Be7 {[%clk 0:02:54.5]} 5. Bg5 {[%clk 0:03:00]} 5...
Nbd7 {[%clk 0:02:53.4]} 6. e3 {[%clk 0:02:59.8]} 6... c5 {[%clk 0:02:48.5]} 7.
dxc5 {[%clk 0:02:50]} 7... Nxc5 {[%clk 0:02:48.3]} 8. Qc2 {[%clk 0:02:42.3]}
8... h6 {[%clk 0:02:45.1]} 9. Bh4 {[%clk 0:02:40.6]} 9... g5 {[%clk 0:02:28.6]}
10. Bg3 {[%clk 0:02:39.7]} 10... Nfe4 {[%clk 0:02:29.1]} 11. cxd5 {[%clk
0:02:35.9]} 11... exd5 {[%clk 0:02:27]} 12. Bb5+ {[%clk 0:02:35]} 12... Kf8
{[%clk 0:02:19.2]} 13. Be5 {[%clk 0:02:30.4]} 13... f6 {[%clk 0:02:18.3]} 14.
Bd4 {[%clk 0:02:29.6]} 14... Ne6 {[%clk 0:02:18.1]} 15. O-O {[%clk 0:02:21.7]}
15... Nxd4 {[%clk 0:02:14.9]} 16. Nxd4 {[%clk 0:02:20.3]} 16... Nxc3 {[%clk
0:02:11.2]} 17. Qxc3 {[%clk 0:02:19.6]} 17... Bd7 {[%clk 0:02:11.1]} 18. Rac1
{[%clk 0:02:10.3]} 18... a6 {[%clk 0:02:06.9]} 19. Bxd7 {[%clk 0:01:58.8]} 19...
Qxd7 {[%clk 0:02:07.8]} 20. Qd3 {[%clk 0:01:53]} 20... Kf7 {[%clk 0:02:04.3]}
21. Nf5 {[%clk 0:01:49.5]} 21... Rhd8 {[%clk 0:02:01.7]} 22. Nxh6+ {[%clk
0:01:43.8]} 22... Kg7 {[%clk 0:02:01.9]} 23. Nf5+ {[%clk 0:01:43.1]} 23... Kf7
{[%clk 0:02:02.3]} 24. Rfd1 {[%clk 0:01:35.6]} 24... Qe6 {[%clk 0:01:55]} 25.
Rc7 {[%clk 0:01:16.9]} 25... Rd7 {[%clk 0:01:48.9]} 26. Nd4 {[%clk 0:01:14.3]}
26... Qd6 {[%clk 0:01:27.7]} 27. Qh7+ {[%clk 0:01:12.2]} 27... Ke8 {[%clk
0:01:25.1]} 28. Qg6+ {[%clk 0:00:44.4]} 28... Kf8 {[%clk 0:01:20.4]} 29. Rxd7
{[%clk 0:00:33.5]} 29... Qxd7 {[%clk 0:01:21.3]} 30. Nf5 {[%clk 0:00:32.3]}
30... Rc8 {[%clk 0:01:09.5]} 31. Qg7+ {[%clk 0:00:30.6]} 31... Ke8 {[%clk
0:01:09.6]} 32. Qg8+ {[%clk 0:00:30.5]} 32... Bf8 {[%clk 0:01:09.5]} 33. g4
{[%clk 0:00:27.1]} 33... Rc4 {[%clk 0:01:02.3]} 34. h3 {[%clk 0:00:25.5]} 34...
Qf7 {[%clk 0:00:52.4]} 35. Nd6+ {[%clk 0:00:22.7]} 1-0

[Event "Late-Titled-Tuesday-Blitz-April-02-2024"]
[Site "Chess.com"]
[Date "2024.04.02"]
[Round "2"]
[White "stasOR4ik"]
[Black "Carlos-Godoy"]
[Result "1-0"]
[WhiteElo "2422"]
[BlackElo "2049"]
[TimeControl "180+1"]
[EndTime "14:16:12 PDT"]
[Termination "stasOR4ik won by checkmate"]

1. e4 {[%clk 0:03:00.9]} 1... c5 {[%clk 0:02:58.8]} 2. c3 {[%clk 0:02:59.1]}
2... Nf6 {[%clk 0:02:56.7]} 3. e5 {[%clk 0:02:59.4]} 3... Nd5 {[%clk 0:02:56.3]}
4. Nf3 {[%clk 0:02:59.6]} 4... d6 {[%clk 0:02:54.1]} 5. Bb5+ {[%clk 0:02:52.2]}
5... Bd7 {[%clk 0:02:53.1]} 6. Bc4 {[%clk 0:02:51.7]} 6... e6 {[%clk 0:02:48.8]}
7. Bxd5 {[%clk 0:02:39.1]} 7... exd5 {[%clk 0:02:47.8]} 8. d4 {[%clk 0:02:39.1]}
8... Be7 {[%clk 0:02:46.3]} 9. Bf4 {[%clk 0:02:34.9]} 9... Bg4 {[%clk 0:02:37]}
10. exd6 {[%clk 0:02:29.9]} 10... Bxd6 {[%clk 0:02:34.4]} 11. Qe2+ {[%clk
0:02:30]} 11... Be7 {[%clk 0:02:29.3]} 12. O-O {[%clk 0:02:25.7]} 12... O-O
{[%clk 0:02:28.6]} 13. h3 {[%clk 0:02:24.5]} 13... Bh5 {[%clk 0:02:25.3]} 14.
Nbd2 {[%clk 0:02:24]} 14... cxd4 {[%clk 0:02:23.8]} 15. cxd4 {[%clk 0:02:22.4]}
15... Nc6 {[%clk 0:02:24.3]} 16. Qb5 {[%clk 0:02:20.1]} 16... Qd7 {[%clk
0:01:46.4]} 17. Rfe1 {[%clk 0:02:19.5]} 17... Bf6 {[%clk 0:01:43.9]} 18. Rac1
{[%clk 0:01:32.7]} 18... Rfe8 {[%clk 0:01:37.7]} 19. Qc5 {[%clk 0:01:17.6]}
19... Rac8 {[%clk 0:01:23.3]} 20. Rxe8+ {[%clk 0:01:13.9]} 20... Rxe8 {[%clk
0:01:20]} 21. Ne5 {[%clk 0:01:02.2]} 21... Bxe5 {[%clk 0:01:18.7]} 22. Bxe5
{[%clk 0:01:02.1]} 22... Nxe5 {[%clk 0:01:14.4]} 23. dxe5 {[%clk 0:01:01.9]}
23... Rxe5 {[%clk 0:01:10.5]} 24. Qxa7 {[%clk 0:00:58.1]} 24... h6 {[%clk
0:01:06.4]} 25. Nb3 {[%clk 0:00:43.3]} 25... Re2 {[%clk 0:01:05.5]} 26. Qb8+
{[%clk 0:00:30.4]} 26... Kh7 {[%clk 0:01:03.3]} 27. Nd4 {[%clk 0:00:22.4]} 27...
Rxb2 {[%clk 0:00:59.4]} 28. Rc8 {[%clk 0:00:22.5]} 28... Qe7 {[%clk 0:00:41.6]}
29. Rh8+ {[%clk 0:00:20.2]} 29... Kg6 {[%clk 0:00:41.6]} 30. Qg3+ {[%clk
0:00:20.7]} 30... Kf6 {[%clk 0:00:39.3]} 31. Qf4+ {[%clk 0:00:20.8]} 31... Kg6
{[%clk 0:00:37.8]} 32. Qf5# {[%clk 0:00:21.7]} 1-0

[Event "Late-Titled-Tuesday-Blitz-April-02-2024"]
[Site "Chess.com"]
[Date "2024.04.02"]
[Round "2"]
[White "Pingah9"]
[Black "moro182"]
[Result "0-1"]
[WhiteElo "2580"]
[BlackElo "2896"]
[TimeControl "180+1"]
[EndTime "14:16:13 PDT"]
[Termination "moro182 won by resignation"]

1. e4 {[%clk 0:03:00.9]} 1... g6 {[%clk 0:03:00.9]} 2. h4 {[%clk 0:02:59]} 2...
Bg7 {[%clk 0:03:01.8]} 3. h5 {[%clk 0:02:59.4]} 3... d5 {[%clk 0:03:02.4]} 4.
exd5 {[%clk 0:02:57.4]} 4... Qxd5 {[%clk 0:03:03.3]} 5. Nc3 {[%clk 0:02:57.4]}
5... Qe5+ {[%clk 0:02:56.9]} 6. Be2 {[%clk 0:02:55.9]} 6... Bg4 {[%clk
0:02:53.1]} 7. d4 {[%clk 0:02:51.1]} 7... Qe6 {[%clk 0:02:52.2]} 8. Be3 {[%clk
0:02:46.1]} 8... Bxe2 {[%clk 0:02:49.8]} 9. Ngxe2 {[%clk 0:02:47]} 9... Qg4
{[%clk 0:02:41.5]} 10. Qd3 {[%clk 0:02:42.1]} 10... Nc6 {[%clk 0:02:35.9]} 11.
h6 {[%clk 0:02:17.1]} 11... Bf6 {[%clk 0:02:24.4]} 12. Nd5 {[%clk 0:01:43.6]}
12... O-O-O {[%clk 0:02:20.7]} 13. c4 {[%clk 0:01:31.2]} 13... e6 {[%clk
0:02:17.3]} 14. Nxf6 {[%clk 0:01:30.8]} 14... Nxf6 {[%clk 0:02:18.2]} 15. O-O
{[%clk 0:01:25]} 15... Ne5 {[%clk 0:02:10]} 16. f3 {[%clk 0:01:08.1]} 16... Nxd3
{[%clk 0:01:38.2]} 17. fxg4 {[%clk 0:01:08.2]} 17... Nxg4 {[%clk 0:01:39.1]} 18.
Bg5 {[%clk 0:01:08.7]} 18... f6 {[%clk 0:01:26.7]} 19. Bxf6 {[%clk 0:01:05.4]}
19... Nxf6 {[%clk 0:01:27.6]} 20. Rxf6 {[%clk 0:01:05.5]} 20... Nxb2 {[%clk
0:01:28.3]} 21. Rc1 {[%clk 0:01:00.8]} 21... Rhe8 {[%clk 0:01:22.2]} 22. Rc3
{[%clk 0:00:57.7]} 22... Rd7 {[%clk 0:01:05.7]} 23. g4 {[%clk 0:00:56.2]} 23...
c6 {[%clk 0:00:52.3]} 24. Kg2 {[%clk 0:00:52.7]} 24... e5 {[%clk 0:00:46.9]} 25.
d5 {[%clk 0:00:50.8]} 25... cxd5 {[%clk 0:00:41.1]} 26. cxd5+ {[%clk 0:00:51.7]}
26... Kb8 {[%clk 0:00:41.2]} 27. d6 {[%clk 0:00:52.3]} 27... Red8 {[%clk
0:00:39.6]} 28. Re6 {[%clk 0:00:44.1]} 28... Rxd6 {[%clk 0:00:37]} 29. Rxe5
{[%clk 0:00:44.6]} 29... Nd3 {[%clk 0:00:36.2]} 30. Re7 {[%clk 0:00:44.6]} 30...
R6d7 {[%clk 0:00:35.8]} 31. Re3 {[%clk 0:00:42.4]} 31... a6 {[%clk 0:00:31.8]}
32. Ng3 {[%clk 0:00:38.4]} 32... Nb4 {[%clk 0:00:31.3]} 33. Ra3 {[%clk
0:00:34.8]} 33... Nc2 {[%clk 0:00:30.7]} 0-1

[Event "Late-Titled-Tuesday-Blitz-April-02-2024"]
[Site "Chess.com"]
[Date "2024.04.02"]
[Round "2"]
[White "MaestroCheck"]
[Black "ArtemDyachuk"]
[Result "0-1"]
[WhiteElo "2551"]
[BlackElo "2792"]
[TimeControl "180+1"]
[EndTime "14:16:13 PDT"]
[Termination "ArtemDyachuk won by checkmate"]

1. e4 {[%clk 0:03:00.9]} 1... e5 {[%clk 0:02:55.9]} 2. Nf3 {[%clk 0:03:00.8]}
2... Nc6 {[%clk 0:02:56.4]} 3. Bc4 {[%clk 0:03:01.3]} 3... Bc5 {[%clk
0:02:55.6]} 4. Nc3 {[%clk 0:03:00.3]} 4... d6 {[%clk 0:02:53.2]} 5. d3 {[%clk
0:02:58.2]} 5... h6 {[%clk 0:02:51.9]} 6. Na4 {[%clk 0:02:55.9]} 6... Bb6 {[%clk
0:02:48.5]} 7. a3 {[%clk 0:02:55]} 7... Nf6 {[%clk 0:02:48]} 8. h3 {[%clk
0:02:54.5]} 8... Qe7 {[%clk 0:02:48.5]} 9. O-O {[%clk 0:02:41.5]} 9... g5 {[%clk
0:02:24.7]} 10. Nxb6 {[%clk 0:02:13.2]} 10... axb6 {[%clk 0:02:24.2]} 11. Nh2
{[%clk 0:01:55.4]} 11... Rg8 {[%clk 0:02:24.1]} 12. c3 {[%clk 0:01:51.5]} 12...
g4 {[%clk 0:02:13.1]} 13. hxg4 {[%clk 0:01:50.3]} 13... Nxg4 {[%clk 0:02:14]}
14. Nxg4 {[%clk 0:01:43.9]} 14... Bxg4 {[%clk 0:02:14.9]} 15. f3 {[%clk
0:01:44.2]} 15... Bh3 {[%clk 0:02:15.1]} 16. Rf2 {[%clk 0:01:44.7]} 16... O-O-O
{[%clk 0:02:15.4]} 17. Be3 {[%clk 0:01:33.5]} 17... Rg6 {[%clk 0:02:13.7]} 18.
Kf1 {[%clk 0:01:14.3]} 18... Rxg2 {[%clk 0:02:01.8]} 19. Ke2 {[%clk 0:01:10.2]}
19... Rdg8 {[%clk 0:01:53]} 20. Qh1 {[%clk 0:01:07.6]} 20... Qh4 {[%clk
0:01:42.5]} 21. Bxf7 {[%clk 0:01:06.5]} 21... R8g3 {[%clk 0:00:52.5]} 22. Be6+
{[%clk 0:00:41]} 22... Kb8 {[%clk 0:00:52]} 23. Bg4 {[%clk 0:00:24.6]} 23...
Rxg4 {[%clk 0:00:44.7]} 24. fxg4 {[%clk 0:00:23.3]} 24... Bxg4+ {[%clk
0:00:44.5]} 25. Kd2 {[%clk 0:00:20.8]} 25... Rxf2+ {[%clk 0:00:44.7]} 26. Bxf2
{[%clk 0:00:21.7]} 26... Qxf2+ {[%clk 0:00:44.9]} 27. Kc1 {[%clk 0:00:22.4]}
27... Na5 {[%clk 0:00:45.2]} 28. Kb1 {[%clk 0:00:21.2]} 28... Nb3 {[%clk
0:00:44.9]} 29. Ra2 {[%clk 0:00:21.4]} 29... Be2 {[%clk 0:00:44.6]} 30. Kc2
{[%clk 0:00:16.3]} 30... Nc5 {[%clk 0:00:44.6]} 31. Qxh6 {[%clk 0:00:13.8]}
31... Bxd3+ {[%clk 0:00:43.9]} 32. Kd1 {[%clk 0:00:14]} 32... Bc2+ {[%clk
0:00:44]} 33. Kc1 {[%clk 0:00:13.1]} 33... Nb3# {[%clk 0:00:44.7]} 0-1

[Event "Late-Titled-Tuesday-Blitz-April-02-2024"]
[Site "Chess.com"]
[Date "2024.04.02"]
[Round "2"]
[White "djano"]
[Black "jamengrand"]
[Result "1-0"]
[WhiteElo "2660"]
[BlackElo "2306"]
[TimeControl "180+1"]
[EndTime "14:16:13 PDT"]
[Termination "djano won on time"]

1. e4 {[%clk 0:03:00.9]} 1... e6 {[%clk 0:00:02.4]} 2. b3 {[%clk 0:02:59.3]}
2... d6 {[%clk 0:00:02.2]} 3. Bb2 {[%clk 0:02:59.4]} 3... Nd7 {[%clk 0:00:02.7]}
4. f4 {[%clk 0:02:58.9]} 4... Ngf6 {[%clk 0:00:03]} 5. d3 {[%clk 0:02:58.7]}
5... Be7 {[%clk 0:00:03.4]} 6. Nf3 {[%clk 0:02:59.2]} 6... O-O {[%clk
0:00:03.7]} 7. Nbd2 {[%clk 0:02:59.8]} 7... c5 {[%clk 0:00:04.1]} 8. Qe2 {[%clk
0:03:00.2]} 8... Nb8 {[%clk 0:00:04]} 9. g4 {[%clk 0:03:00.6]} 9... Nc6 {[%clk
0:00:04.4]} 10. g5 {[%clk 0:03:00.8]} 10... Nd7 {[%clk 0:00:05.3]} 11. h4 {[%clk
0:03:01.2]} 11... d5 {[%clk 0:00:04.6]} 12. O-O-O {[%clk 0:02:59.7]} 12... d4
{[%clk 0:00:04.8]} 13. h5 {[%clk 0:02:59.8]} 13... a5 {[%clk 0:00:05.2]} 14. g6
{[%clk 0:03:00.3]} 14... fxg6 {[%clk 0:00:04.7]} 15. hxg6 {[%clk 0:02:59]} 15...
h6 {[%clk 0:00:05.6]} 16. a4 {[%clk 0:02:57.7]} 16... b5 {[%clk 0:00:05.4]} 17.
axb5 {[%clk 0:02:57.6]} 17... Nb4 {[%clk 0:00:05.9]} 18. Bh3 {[%clk 0:02:55.2]}
18... a4 {[%clk 0:00:06]} 19. Bxe6+ {[%clk 0:02:54.9]} 19... Kh8 {[%clk
0:00:06.5]} 20. Ng5 {[%clk 0:01:45.9]} 20... Nf6 {[%clk 0:00:06.1]} 21. e5
{[%clk 0:01:38.7]} 21... Ng8 {[%clk 0:00:05.2]} 22. Nf7+ {[%clk 0:01:28]} 22...
Rxf7 {[%clk 0:00:05.5]} 23. Bxf7 {[%clk 0:01:28.9]} 23... axb3 {[%clk 0:00:04]}
24. Nxb3 {[%clk 0:01:26.5]} 24... Bf8 {[%clk 0:00:04]} 25. Kd2 {[%clk
0:01:21.8]} 25... Na2 {[%clk 0:00:04.1]} 26. Ra1 {[%clk 0:01:21.6]} 26... c4
{[%clk 0:00:05]} 27. dxc4 {[%clk 0:01:20.9]} 27... Bb4+ {[%clk 0:00:03.5]} 28.
Kd1 {[%clk 0:01:15.4]} 28... Nc3+ {[%clk 0:00:03.8]} 29. Bxc3 {[%clk 0:01:14.8]}
29... dxc3+ {[%clk 0:00:04.3]} 30. Qd3 {[%clk 0:01:13.3]} 30... Rxa1+ {[%clk
0:00:05.2]} 31. Nxa1 {[%clk 0:01:13.1]} 31... Qxd3+ {[%clk 0:00:03.5]} 32. cxd3
{[%clk 0:01:13.4]} 32... Bg4+ {[%clk 0:00:04.2]} 33. Kc2 {[%clk 0:01:12.9]}
33... Ne7 {[%clk 0:00:04.1]} 34. Nb3 {[%clk 0:01:08.4]} 34... Nf5 {[%clk
0:00:04.5]} 35. Re1 {[%clk 0:01:06.2]} 35... h5 {[%clk 0:00:03.7]} 36. b6 {[%clk
0:01:05.8]} 36... h4 {[%clk 0:00:03.9]} 37. b7 {[%clk 0:01:05.9]} 1-0